Cogmind - Beta 14 @@@ ROGUE MODE // 2024.08.31 @ 18:47:29 Player: THN-L0C Result: Self-destructed Performance ------------- Evolutions (1) 500 Regions Visited (3) 600 Robots Destroyed (48) 240 Value Destroyed (1207) 1207 Prototype IDs (0) 0 Alien Tech Used (0) 0 Bonus (14) 14 TOTAL SCORE: 2561 Bonus ------- Follower Combat Kills 14 Cogmind --------- Core Integrity 221/400 Matter 210/300 Energy 265/265 System Corruption 0% Temperature Cool (6) Movement Rolling (105) Ox1 Location -9/Materials Parts ------- > --- POWER (1) -------- Reinforced Ion Engine > --- PROPULSION (2) --- Armored Wheel Armored Wheel > --- UTILITY (4) ------ Large Storage Unit Hardened Light Armor Plating > --- WEAPON (2) ------- Shotgun > --- INVENTORY (15) --- Reinforced Ion Engine Reinforced Ion Engine Improved Treads Aluminum Leg Aluminum Leg Armored Wheel Seismic Detector Propulsion Shielding Hardened Light Armor Plating Particle Cannon Particle Cannon Grenade Launcher Proton Bomb Trap Proton Bomb Trap Proton Bomb Trap Peak State ------------ > --- POWER ------------ Reinforced Ion Engine > --- PROPULSION ------- Aluminum Leg Carbon-fiber Leg > --- UTILITY ---------- Large Storage Unit Propulsion Shielding Hardened Light Armor Plating Hardened Light Armor Plating > --- WEAPON ----------- Particle Cannon Shotgun > --- INVENTORY -------- Reinforced Ion Engine Reinforced Ion Engine Aluminum Leg Aluminum Leg Seismic Detector Propulsion Shielding Hardened Light Armor Plating Particle Cannon Shotgun Grenade Launcher Grenade Launcher Grenade Launcher Proton Bomb Trap Proton Bomb Trap Proton Bomb Trap [Rating: 18] Favorites ----------- Power Reinforced Ion Engine Engine Reinforced Ion Engine Propulsion Aluminum Leg Treads Light Treads Leg Aluminum Leg Wheel Armored Wheel Utility Hardened Light Armor Plating Device Seismic Detector Storage Large Storage Unit Protection Hardened Light Armor Plating Weapon Shotgun Energy Cannon Particle Cannon Ballistic Gun Shotgun Launcher Grenade Launcher Build | -11 -10 -10 -9 ------- Run | Yrd Mat Min Mat Slots Evolved 2 | . . . 2 Power . | . . . . Propulsion . | . . . . Utility 2 | . . . 2 Weapon . | . . . . Parts Attached 36 | 7 10 6 13 Power 3 | 1 1 1 . Engine 3 | 1 1 1 . Core . | . . . . Reactor . | . . . . Propulsion 15 | 2 4 3 6 Treads 3 | 2 1 . . Leg 8 | . 3 3 2 Wheel 4 | . . . 4 Hover . | . . . . Flight . | . . . . Utility 7 | 2 2 1 2 Device 1 | 1 . . . Storage 2 | 1 1 . . Processor . | . . . . Hackware . | . . . . Protection 4 | . 1 1 2 Artifact . | . . . . Weapon 11 | 2 3 1 5 Energy Gun . | . . . . Energy Cannon 1 | . . . 1 Ballistic Gun 7 | 2 3 . 2 Ballistic Cannon . | . . . . Launcher 3 | . . 1 2 Special Weapon . | . . . . Impact Weapon . | . . . . Slashing Weapon . | . . . . Piercing Weapon . | . . . . Special Melee Weapon . | . . . . Unidentified Prototypes . | . . . . Parts Lost 8 | . 1 . 7 Power . | . . . . Propulsion 3 | . 1 . 2 Utility 2 | . . . 2 Weapon 3 | . . . 3 Highest Loss Streak 3 | . 1 . 3 To Critical Strikes . | . . . . Average Slot Usage (%) 98 | . 99 100 91 Engine 13 | . 14 14 11 Treads 9 | . 24 . . Leg 16 | . 3 28 18 Device 2 | . 5 . . Storage 13 | . 14 14 11 Protection 14 | . 8 14 27 Energy Cannon 1 | . . . 7 Ballistic Gun 21 | . 28 21 11 Launcher 3 | . . 6 2 Peak Build Rating 18 | 7 13 15 18 Average Rating 12 | 5 10 13 16 On Entrance 8 | . 7 13 14 Naked Turns . | . . . . Heaviest Build 48 | 13 41 41 48 Greatest Support 40 | 40 40 25 25 Greatest Overweight (x) 3 | . 2 2 3 Average Overweight (x) . | . . 1 1 Largest Inventory Capacity 15 | 8 15 15 15 Average Capacity 14 | 7 13 15 15 Most Carried 15 | . 15 15 15 Average Carried 13 | . 12 14 14 Final Capacity 15 | 8 15 15 15 Final Carried 15 | . 15 15 15 Class Distribution -------------------- 100% | Mutant Dominant Class ---------------- Mutant | -10/Materials Mutant | -10/Mines Mutant | -9/Materials Resources | -11 -10 -10 -9 ----------- Run | Yrd Mat Min Mat Matter Collected 948 | 270 168 285 225 Remotely . | . . . . Salvage Created 1449 | 98 458 224 669 Parts 96 | 4 30 17 45 Haulers Intercepted . | . . . . Recyclers Shooed 2 | . . . 2 Parts Field Recycled . | . . . . Retrieved Matter . | . . . . Parts Self-Destructed . | . . . . Prevented . | . . . . Kills | -11 -10 -10 -9 ------- Run | Yrd Mat Min Mat Combat Hostiles Destroyed 35 | . 14 8 13 Guns 23 | . 14 5 4 Cannons 5 | . . . 5 AOE 7 | . . 3 4 Classes Destroyed 8 | 2 4 . 2 Worker 4 | . 1 . 3 Builder 1 | . . . 1 Tunneler 2 | 2 . . . Recycler 4 | 1 . 1 2 Watcher 2 | . 1 . 1 Swarmer 8 | . 3 5 . Grunt 22 | . 11 3 8 Sentry 5 | . . . 5 Best Kill Streak 9 | 3 3 3 9 Combat Bots Only 4 | . 3 3 4 Max Kills in Single Turn 3 | 1 1 3 3 Gunslinging . | . . . . Exploded 3 | . . 3 2 Melee . | . . . . Uniques/NPCs Destroyed . | . . . . Combat | -11 -10 -10 -9 -------- Run | Yrd Mat Min Mat Hostile Shots Fired 227 | . 74 30 123 Missed 62 | . 21 7 34 Damage Taken 2131 | . 608 223 1300 Core 266 | . 68 19 179 Absorbed by Shields . | . . . . Redirected to Shielding 52 | . . . 52 Core Remaining (%) 82 | 100 . 65 . Volleys Fired 104 | 12 36 13 43 Largest 2 | 2 2 2 2 Hottest 91 | 40 46 46 91 Shots Fired 181 | 24 72 25 60 Gun 147 | 24 72 24 27 Cannon 21 | . . . 21 Launcher 13 | . . 1 12 Special . | . . . . Kinetic 147 | 24 72 24 27 Thermal 21 | . . . 21 Explosive 13 | . . 1 12 Electromagnetic . | . . . . Robot Hit Streak 13 | 6 7 6 13 Robot Miss Streak 8 | 1 3 8 3 Penetration Max . | . . . . Secondary Targets 5 | . 3 2 . Max Gunslinging Chain 1 | . 1 1 . Shots Hit Robots 122 | 17 53 14 38 Core Hits 90 | 7 30 14 39 Critical Kills . | . . . . Critical Parts Destroyed 1 | . 1 . . Critical Strikes 1 | . 1 . . Destroy 1 | . 1 . . Melee Attacks . | . . . . Impact . | . . . . Slashing . | . . . . Piercing . | . . . . Sneak Attacks . | . . . . Combat Hostiles . | . . . . Follow-up Attacks . | . . . . Damage Inflicted 2275 | 131 743 310 1091 Guns 1371 | 131 718 185 337 Cannons 322 | . . . 322 Explosions 494 | . . 119 375 Melee . | . . . . Ramming 88 | . 25 6 57 Kinetic 1371 | 131 718 185 337 Thermal 322 | . . . 322 Explosive 494 | . . 119 375 Electromagnetic . | . . . . Impact . | . . . . Slashing . | . . . . Piercing . | . . . . Highest Corruption . | . . . . Average Corruption . | . . . . Corruption Purged . | . . . . Corruption Blocked . | . . . . Overload Shots . | . . . . Overflow Damage 22 | . . . 22 Projectiles . | . . . . Explosions 21 | . . . 21 Melee 1 | . . . 1 Knockbacks 1 | . 1 . . Impact 1 | . 1 . . Kinetic . | . . . . Secondary . | . . . . Self-Inflicted Damage 172 | . . . 172 Shots 5 | . . . 5 Rammed 7 | . 5 . 2 Targets Rammed 15 | . 6 3 6 Kicked 7 | . . 3 4 Crushed 1 | . 1 . . Highest Temperature 275 | . 237 126 275 Average Temperature 104 | . 79 42 126 Received Heat Transfer 831 | . 315 54 462 Effects 6 | . 1 . 5 Energy Bleed 2 | . 1 . 1 Interference 4 | . . . 4 Siege Activations . | . . . . Robots Corrupted . | . . . . Combat Hostiles . | . . . . Parts Fried . | . . . . Impact Corruptions 1 | . . . 1 Robots Melted . | . . . . Combat Hostiles . | . . . . Parts Melted . | . . . . Heat Transferred 555 | . . . 555 Parts Sabotaged . | . . . . Parts Stolen . | . . . . Parts Stripped . | . . . . Power Chain Reactions . | . . . . Alert | -11 -10 -10 -9 ------- Run | Yrd Mat Min Mat Peak Influence 407 | 15 242 169 407 Initial 62 | . 9 62 . Average 81 | 4 98 51 119 Maximum Alert Level 2 | . 1 . 2 Low Security (%) 94 | 100 95 100 82 Level 1 4 | . 4 . 16 Level 2 . | . . . 1 Level 3 . | . . . . Level 4 . | . . . . Level 5 . | . . . . High Security . | . . . . Max Security . | . . . . Squads Dispatched 7 | . 5 . 2 Investigation 4 | . 4 . . Extermination . | . . . . Reinforcement 3 | . 1 . 2 Assault . | . . . . Garrison . | . . . . Intercept . | . . . . Searches Triggered . | . . . . Construction Impeded . | . . . . Haulers Reinforced . | . . . . Active Scanning Responses . | . . . . Cargo Convoy Interrupts . | . . . . Stealth | -11 -10 -10 -9 --------- Run | Yrd Mat Min Mat Distress Signals 6 | . 2 . 4 Communications Jammed . | . . . . Distress Signals . | . . . . Times Spotted 73 | . 26 12 35 Peak Tracking Total 8 | . 6 3 8 Tactical Retreats 6 | . 2 . 4 Traps | -11 -10 -10 -9 ------- Run | Yrd Mat Min Mat Traps Triggered 5 | . 4 . 1 Indirectly . | . . . . Trap Hack Attempts . | . . . . Triggered . | . . . . Disarmed . | . . . . Reprogrammed . | . . . . Reused . | . . . . Traps Extracted . | . . . . Installed . | . . . . Triggered . | . . . . Most Traps Carried 3 | . . 3 3 Machines | -11 -10 -10 -9 ---------- Run | Yrd Mat Min Mat Machines Disabled 1 | . . 1 . Max in Single Turn . | . . . . Machines Repaired . | . . . . Machines Dismantled . | . . . . Machines Sabotaged . | . . . . Overloaded Fab Kills . | . . . . Hacking | -11 -10 -10 -9 --------- Run | Yrd Mat Min Mat Machines Accessed 8 | . 7 . 1 Terminals 8 | . 7 . 1 Fabricators . | . . . . Repair Stations . | . . . . Recycling Units . | . . . . Scanalyzers . | . . . . Garrison Access . | . . . . Total Hacks 17 | . 15 . 2 Successful 9 | . 8 . 1 Failed 8 | . 7 . 1 Catastrophic . | . . . . Database Lockouts . | . . . . Manual 16 | . 14 . 2 Terminals 17 | . 15 . 2 Fabricators . | . . . . Repair Stations . | . . . . Recycling Units . | . . . . Scanalyzers . | . . . . Garrison Access . | . . . . Terminal Hacks 2 | . 2 . . Robot Analysis 2 | . 2 . . Fabricator Hacks . | . . . . Repair Station Hacks . | . . . . Recycling Unit Hacks . | . . . . Scanalyzer . | . . . . Garrison Access Hacks . | . . . . Unauthorized Hacks 7 | . 6 . 1 Terminals 7 | . 6 . 1 Botnet 1 | . 1 . . Skim 6 | . 5 . 1 Fabricators . | . . . . Repair Stations . | . . . . Recycling Units . | . . . . Scanalyzers . | . . . . Garrison Access . | . . . . Data Cores Recovered . | . . . . Used . | . . . . Hacking Detections 8 | . 7 . 1 Full Trace Events 1 | . 1 . . Feedback Events . | . . . . Feedback Blocked . | . . . . Robot Schematics Acquired . | . . . . Robots Built . | . . . . Authchips . | . . . . Time . | . . . . Total Robot Build Rating . | . . . . Part Schematics Acquired . | . . . . Parts Built . | . . . . Authchips . | . . . . Time . | . . . . Total Part Build Rating . | . . . . Parts Repaired . | . . . . Time . | . . . . Parts Recycled . | . . . . Recycled Matter . | . . . . Retrieved Matter . | . . . . Retrieved Components . | . . . . Parts Scanalyzed . | . . . . Part Schematics Acquired . | . . . . Parts Damaged . | . . . . Bothacking | -11 -10 -10 -9 ------------ Run | Yrd Mat Min Mat Used RIF Installer . | . . . . Robots Hacked . | . . . . Non-combat . | . . . . Combat . | . . . . Robot Hacks Applied . | . . . . Relay Couplers Released . | . . . . Fabnet Peak Effective % . | . . . . Robots Rewired . | . . . . Allies Hacked . | . . . . Hacks Repelled . | . . . . Allies | -11 -10 -10 -9 -------- Run | Yrd Mat Min Mat Total Allies 1 | . . 1 . Largest Group 1 | . . 1 . Highest-Rated Group 31 | . . 31 . Highest-Rated Ally 31 | . . 31 . Total Orders . | . . . . Ally Attacks 17 | . . 17 . Total Damage 82 | . . 82 . Kills 2 | . . 2 . Allies Corrupted . | . . . . Allies Melted . | . . . . Intel | -11 -10 -10 -9 ------- Run | Yrd Mat Min Mat Robot Analysis Total 2 | . 2 . . Derelict Logs Recovered 1 | . . 1 . Drone Launches . | . . . . Drone Recoveries . | . . . . Exploration | -11 -10 -10 -9 ------------- Run | Yrd Mat Min Mat Turns Passed 3786 | 109 1430 1482 765 Spaces Moved 1724 | 49 681 651 343 Core 10 | 10 . . . Treads 661 | 39 622 . . Legs 970 | . 59 651 260 Wheels 83 | . . . 83 Hover . | . . . . Flight . | . . . . Fastest Speed 50 | 50 160 190 100 Average Speed 191 | 137 186 210 171 Slowest Speed 330 | 160 320 260 330 Overloaded Moves . | . . . . Propulsion Burnouts . | . . . . Robots Hopped . | . . . . Cave-ins Triggered . | . . . . Exploration Rate (%) 60 | 3 92 98 48 Regions Visited 3 Branch Regions 1 Pre-discovered Areas 1 | . . 1 . Known Exits Taken . | . . . . Unknown Exits Taken 3 | 1 1 1 . Scrap Searched 3 | . . 3 . Spaces Dug . | . . . . Terrain Destroyed 53 | . . 11 42 Melee . | . . . . Projectile . | . . . . AOE 53 | . . 11 42 Terrain Rammed . | . . . . Walls Destroyed . | . . . . Machines Disabled . | . . . . Actions | -11 -10 -10 -9 --------- Run | Yrd Mat Min Mat Total 2032 | 68 776 735 453 Wait 109 | 1 12 54 42 Move 1721 | 48 680 650 343 Hop . | . . . . Pick Up 27 | . 21 3 3 Fast Attach 11 | 7 3 . 1 Attach 5 | . . . 5 Detach . | . . . . Swap 20 | . 7 6 7 Drop 20 | . 11 6 3 Fire 104 | 12 36 13 43 Melee . | . . . . Ram 2 | . . . 2 Kick 7 | . . 3 4 Crush 6 | . 6 . . Escape Stasis . | . . . . Rewire . | . . . . Trap . | . . . . Miscellaneous . | . . . . Route ------- -11/Scrapyard -10/Materials (discovered 4 exits: *Mat x3 / [*Min]) -10/Mines (discovered 3 exits: *Mat x2 / [*Exi]) -9/Materials (discovered 1 exit: [*Sto]) History --------- Turn | Location | Event 30 | -11/Scrapyard | Discovered new exit (range 15) 110 | -11/Scrapyard | Entered Materials 306 | -10/Materials | Build established: Mutant 371 | -10/Materials | Discovered new exit (range 4) 603 | -10/Materials | Discovered new exit (range 6) 660 | -10/Materials | Discovered new exit (range 9) 1265 | -10/Materials | Discovered new exit (range 15) 1386 | -10/Materials | Learned 4 Recycling zone layouts 1462 | -10/Materials | Learned 2 Storage zone layouts 1528 | -10/Materials | Learned location of 1 exit from Storage 1540 | -10/Materials | Entered Mines 1621 | -10/Mines | Learned location of Zion (-6) 1682 | -10/Mines | Escorted by a lone wolf Derelict 1691 | -10/Mines | Discovered new exit (range 6) 2124 | -10/Mines | YI-UF0 nonchalantly dropped a Grenade Launcher on the ground 2158 | -10/Mines | Assembled infested the area 2781 | -10/Mines | Discovered new exit (range 9) 2796 | -10/Mines | Discovered new exit (range 5) 2904 | -10/Mines | Found a hidden stash of uninstalled traps 3022 | -10/Mines | Entered Materials 3022 | -9/Materials | Evolved 2 slots: Utility x2 3022 | -9/Materials | Discovered new exit (range 8) 3681 | -9/Materials | Lost 3 parts (1n1u1w) 3738 | -9/Materials | Lost 3 parts (1n1u1w) 3787 | -9/Materials | Self-destructed Last Messages --------------- 03696_ U-05 Engineer lays Concrete. 03698_ The unstable cave ceiling collapses. 03699_ U-05 Engineer builds a Wall. 03700_ The unstable cave ceiling collapses. 03700_ Acquired Wheel. 03701_ The unstable cave ceiling collapses. 03703_ U-05 Engineer lays Concrete. 03707_ Grenade Launcher destroyed. 03707_ Destroyed Grenade Launcher. 03708_ U-05 Engineer lays Concrete. 03710_ The unstable cave ceiling collapses. 03710_ U-05 Engineer lays Concrete. 03711_ The unstable cave ceiling collapses. 03711_ U-05 Engineer lays Concrete. 03721_ Slammed into A-02 Transporter. 03762_ Acquired Imp. Treads. 03767_ Dropped Wheel. 03786_ Slammed into S-10 Pest. 03786_ Destroyed Flight Unit. 03786_ S-10 Pest system corrupted by crushing effect. Map ----- +----------------------------------------------------+ | """" #?????????????????????????????????# # # | | """" [#?????????????????????????????????# # # | | """" ?????????????????????????????????##+##### # | | #??????????????????????????????????# #???# # | | #######??????????????????????????????????# ##### # | | ?????????????????????????????????????????# # | | ?????????????????????????????????????????# #### | | ?????????????????????????????????????????# #??? | | ?????????????????????????????????????????# #??? | | ?????????????????????????????????????????# #??? | | ?????????????????????????? ?????????????# #??? | | ????????????????????????# ??############ #??? | | ????????????????????????# ??? # #??? | | ????????????????????????# ????" """ # #??? | | ????????????????????????# ????" """ + #??? | | ????????????????????????# +???" """ #### #??? | | ????????????????????????# # #??# #??? | | ????????????????######### ##############??# #??? | | ????????????????? #????# #??? | | ????????????????? g [ #????# #??? | | ????????????????? #????# #??? | | ?????????????????"""" """" """ [ #????# #??? | | ###????????????? """" """" """ #????# #??? | | #??????????# """" """" """ #######+#??? | | #??????????# s # #??? | | #??????????# [ s@ g + #??? | | " #??????????# u s # = #??? | | " #??????????# #####T# #########??? | | " #??????????????????# #########??????????? | | ###??????????????????#+####+###??????????????????? | | ?????????????????????????????????????????????????? | | ?????????????????????????????????????????????????? | | ?????????????????????????????????????????????????? | | ?????????????????????????????????????????????????? | | ?????????????????????????????????????????????????? | | ?????????????????????????????????????????????????? | | ?????????????????????????????????????????????????? | | ?????????????????????????????????????????????????? | | ?????????????????????????????????????????????????? | | ?????????????????????????????????????????????????? | | ?????????????????????????????????????????????????? | | ?????????????????????????????????????????????????? | | ?????????????????????????????????????????????????? | | ?????????????????????????????????????????????????? | | ?????????????????????????????????????????????????? | | ?????????????????????????????????????????????????? | | ?????????????????????????????????????????????????? | | ?????????????????????????????????????????????????? | | ?????????????????????????????????????????????????? | | ?????????????????????????????????????????????????? | +----------------------------------------------------+ Best States ------------- Heat Dissipation 28 Energy Generation 12 Energy Capacity 265 Matter Stores 300 Matter Capacity 300 Sight Range 16 Terrain Scan Density 10 Armor Coverage 300 Propulsion Shielding 33 Evasion (%) 50 Recoil Reduction 2 Item Schematics ----------------- None Robot Schematics ------------------ None Fabricated ------------ Nothing Alien Tech Used ----------------- None Achievements -------------- None Challenges ------------ None Game ------ Seed AngularHeartGun Manual? 0 Play Time 00:18:02 Cumulative 173.5 hours Start 2024.08.31 @ 18:33:35 End 2024.08.31 @ 18:47:29 Sessions 1 Manual Loads 0 Difficulty Rogue Special Mode None Game No. 137 Rogue 137 Adventurer 0 Explorer 0 Win Type - Total 1 Types 0/0/0/1/0/0/0/0/0 Lore% 62 Gallery% 71 Achievement% 52 Wizard Run 0 Options --------- Layout 2 ASCII 0 Keyboard 1 Movement Vi Keybinds 0 Fullscreen 1 Font 32/SmallcapsGlow Map View 77x44 Zoom Use 0% Tactical HUD 1 Map Filters NONE Filters NONE Steam 1 RUN: ecb00b8c-e626-459f-a027-33064111a908